bitfinex/quotes_BTCUSD_20241111
["timestamp","ask_amount","ask_price","bid_price","bid_amount"]
[1731296068043,0.001684,81117.0,81116.0,0.63623567]
[1731296068253,0.001682,81121.0,81116.0,0.63623567]
[1731296068254,0.001682,81121.0,81120.0,0.255919]
[1731296068465,0.001682,81121.0,81120.0,0.38432591]
[1731296068674,0.001682,81121.0,81120.0,0.42016432]
[1731296069232,0.001682,81121.0,81120.0,0.38186121]
[1731296069446,0.001682,81121.0,81120.0,0.42013954]
[1731296070238,0.001682,81121.0,81120.0,0.38186121]
[1731296071308,1e-06,81123.0,81122.0,0.203616]
[1731296071505,1e-06,81123.0,81122.0,0.55218071]
[1731296071712,1e-06,81123.0,81122.0,0.59928071]
[1731296072871,0.000699,81153.0,81125.0,0.005]
[1731296073078,0.000699,81153.0,81127.0,0.20361]
[1731296073329,0.000699,81153.0,81133.0,0.103603]
[1731296073543,0.18421521,81142.0,81133.0,0.46966771]
[1731296074021,1e-06,81134.0,81133.0,0.54686771]
[1731296076445,1e-06,81134.0,81133.0,0.55764408]
[1731296076894,1e-06,81134.0,81133.0,0.55746758]
[1731296078776,1e-06,81134.0,81133.0,0.56239458]
[1731296081565,1e-06,81134.0,81133.0,0.42227208]
[1731296081780,1e-06,81134.0,81133.0,0.56239458]
[1731296086737,1e-06,81134.0,81133.0,0.41734508]
[1731296086945,1e-06,81134.0,81133.0,0.41654508]
[1731296089995,1e-06,81134.0,81133.0,0.34014508]
[1731296092508,1e-06,81134.0,81133.0,0.42154508]
[1731296092741,0.000659,81139.0,81133.0,0.31811858]
[1731296092951,0.000659,81139.0,81138.0,0.46948521]
[1731296093315,0.000659,81139.0,81138.0,0.5076409]
[1731296094458,0.000659,81139.0,81138.0,0.51094476]
[1731296094935,1.6,81150.0,81149.0,0.1034075]
[1731296095148,1.6,81150.0,81149.0,0.46947221]
[1731296095371,1.6,81150.0,81149.0,0.51096931]
[1731296095573,1.6,81150.0,81149.0,0.5076659]
[1731296096327,1.526062,81150.0,81149.0,0.5076659]
[1731296096524,1.44609853,81150.0,81149.0,0.5890659]
[1731296096828,1.39680653,81150.0,81149.0,0.5890659]
[1731296097255,1.32286853,81150.0,81149.0,0.6386659]
[1731296097623,1.24893053,81150.0,81149.0,0.6386659]
[1731296098264,1.19963853,81150.0,81149.0,0.64920521]
[1731296099031,1.07640853,81150.0,81149.0,0.53208271]
[1731296099157,1.07640853,81150.0,81149.0,0.67220521]
[1731296099568,1.05176253,81150.0,81149.0,0.67220521]
[1731296100816,0.97760343,81150.0,81149.0,0.67220521]
[1731296101779,0.18421521,81164.0,81163.0,0.007]
[1731296102001,0.18421521,81182.0,81181.0,0.098545]
[1731296102202,0.18421521,81182.0,81181.0,0.32448721]
[1731296102404,0.000698,81199.0,81198.0,0.098524]
[1731296102603,0.000698,81199.0,81198.0,0.22446621]
[1731296104241,0.000698,81199.0,81198.0,0.12594221]
[1731296104424,0.000698,81199.0,81198.0,0.22446621]
[1731296104999,0.000698,81199.0,81198.0,0.22692921]
[1731296105204,0.000698,81199.0,81198.0,0.46705171]
[1731296105411,0.000698,81199.0,81198.0,0.46458871]
[1731296105967,0.000698,81199.0,81198.0,0.46658871]
[1731296106183,0.000698,81199.0,81198.0,0.50296347]
[1731296106619,0.000698,81199.0,81198.0,0.5139465]
[1731296107624,0.000698,81199.0,81198.0,0.34044924]
[1731296107818,0.000698,81199.0,81198.0,0.22446621]
[1731296108027,0.000698,81199.0,81198.0,0.22692903]
[1731296108228,0.000698,81199.0,81198.0,0.22446621]
[1731296109363,0.000698,81199.0,81198.0,0.32446621]
[1731296109930,0.000698,81199.0,81198.0,0.22446621]
[1731296110134,0.083998,81199.0,81198.0,0.22446621]
[1731296111623,0.000698,81199.0,81198.0,0.22446621]
[1731296115167,0.000698,81199.0,81198.0,0.46905154]
[1731296115325,0.000698,81199.0,81198.0,0.32446621]
[1731296115531,0.000698,81199.0,81198.0,0.32646621]
[1731296116703,0.000698,81199.0,81198.0,0.32446621]
[1731296118968,0.000698,81199.0,81198.0,0.32646621]
[1731296119139,0.000698,81199.0,81198.0,0.32446621]
[1731296121193,0.000698,81199.0,81178.0,0.18421521]
[1731296121194,0.049498,81199.0,81178.0,0.18421521]
[1731296121418,0.049498,81199.0,81195.0,0.098527]
[1731296121419,0.0821,81198.0,81195.0,0.098527]
[1731296121620,0.0821,81198.0,81193.0,0.09853]
[1731296121823,0.0821,81198.0,81194.0,0.22447121]
[1731296122280,0.0821,81198.0,81194.0,0.12594221]
[1731296122468,0.0821,81198.0,81194.0,0.22447021]
[1731296122677,0.0821,81198.0,81194.0,0.12594221]
[1731296122871,0.0821,81198.0,81197.0,0.098525]
[1731296123284,0.0821,81198.0,81197.0,0.22446721]
[1731296123424,0.000698,81199.0,81198.0,0.098524]
[1731296123628,0.000698,81199.0,81198.0,0.22446621]
[1731296129531,0.000698,81199.0,81198.0,0.46458871]
[1731296129764,0.000698,81199.0,81198.0,0.36973594]
[1731296129961,0.000698,81199.0,81198.0,0.50985844]
[1731296130160,0.000698,81199.0,81198.0,0.36773594]
[1731296130458,0.000698,81199.0,81198.0,0.32946621]
[1731296130848,0.000698,81199.0,81198.0,0.32446621]
[1731296133192,0.000698,81199.0,81198.0,0.36278288]
[1731296133767,0.000698,81199.0,81198.0,0.12594221]
[1731296133971,0.000698,81199.0,81178.0,0.26441521]
[1731296133972,0.01161995,81199.0,81178.0,0.18421521]
[1731296134174,0.1315,81197.0,81192.0,0.098531]
[1731296134381,0.1365,81197.0,81193.0,0.12594221]
[1731296134629,0.00590719,81196.0,81193.0,0.12594221]
[1731296134963,0.005,81191.0,81179.0,0.00764831]
[1731296135146,0.197056,81195.0,81179.0,0.00764831]
[1731296135147,0.185641,81184.0,81183.0,0.18421521]
[1731296135342,0.1365,81184.0,81183.0,0.18421521]
[1731296135540,0.1365,81184.0,81181.0,0.098544]
[1731296135541,0.14200788,81184.0,81181.0,0.098544]
[1731296135689,0.14200788,81184.0,81181.0,0.12594221]
[1731296135690,0.098544,81182.0,81181.0,0.12594221]
[1731296136137,0.103545,81181.0,81179.0,0.00764831]
[1731296136309,0.093545,81181.0,81179.0,0.00764831]
[1731296136531,0.1040388,81180.0,81179.0,0.00764831]
[1731296136732,0.2441613,81180.0,81179.0,0.00764831]
[1731296137370,0.1040388,81180.0,81179.0,0.00764831]
[1731296137573,0.2025868,81180.0,81169.0,0.18421521]
[1731296137779,0.2025868,81180.0,81170.0,0.18421521]
[1731296137780,0.098557,81171.0,81170.0,0.18421521]
[1731296137930,0.1456153,81180.0,81162.0,0.197136]
[1731296138136,0.197097,81178.0,81169.0,0.18421521]
[1731296138336,0.098548,81178.0,81169.0,0.18421521]
[1731296138595,0.1315,81184.0,81169.0,0.18421521]
[1731296138596,0.00546111,81177.0,81169.0,0.18421521]
[1731296138924,0.00475652,81176.0,81169.0,0.28277321]
[1731296139128,0.00475652,81176.0,81169.0,0.38133321]
[1731296139334,0.098551,81176.0,81170.0,0.098558]
[1731296139584,0.00475619,81175.0,81170.0,0.098558]
[1731296139995,0.00475619,81175.0,81171.0,0.197114]
[1731296140211,0.098546,81180.0,81174.0,0.098553]
[1731296140545,0.00475731,81174.0,81169.0,0.18421521]
[1731296140762,0.098547,81179.0,81173.0,0.098554]
[1731296140927,0.0059574,81173.0,81168.0,0.098559]
[1731296141139,0.0059574,81173.0,81169.0,0.098559]
[1731296141351,0.098552,81175.0,81169.0,0.28277421]
[1731296141561,0.00510598,81172.0,81169.0,0.098559]
[1731296141778,0.098553,81175.0,81170.0,0.000842]
[1731296142145,0.00595684,81171.0,81170.0,0.0994]
[1731296142345,0.098551,81177.0,81170.0,0.0994]
[1731296142528,0.00595684,81171.0,81170.0,0.0994]
[1731296142729,0.098551,81177.0,81170.0,0.0994]
[1731296142943,0.01106222,81171.0,81170.0,0.000842]
[1731296143156,0.197095,81179.0,81170.0,0.000842]
[1731296143389,0.09855,81177.0,81170.0,0.0994]
[1731296143598,0.09855,81177.0,81170.0,0.000842]
[1731296143599,0.098557,81171.0,81170.0,0.000842]
[1731296144225,0.1265,81176.0,81170.0,0.000842]
[1731296144598,0.098557,81171.0,81170.0,0.000842]
[1731296145989,0.098556,81172.0,81170.0,0.000842]
[1731296146388,0.098554,81173.0,81170.0,0.000842]
[1731296146590,0.098557,81172.0,81170.0,0.000842]
[1731296146787,0.197107,81174.0,81170.0,0.000842]
[1731296147035,0.098556,81172.0,81170.0,0.000842]
[1731296147238,0.098557,81171.0,81170.0,0.000842]
[1731296148194,0.098556,81173.0,81170.0,0.000842]
[1731296148411,0.098556,81172.0,81170.0,0.000842]
[1731296148632,0.0077023,81171.0,81170.0,0.000842]
[1731296149459,0.323604,81176.0,81170.0,0.000842]
[1731296149460,0.1265,81176.0,81170.0,0.000842]
[1731296149639,0.0077023,81171.0,81170.0,0.099399]
[1731296149874,0.098552,81175.0,81170.0,0.099399]
[1731296150006,0.0077023,81171.0,81170.0,0.099399]
[1731296150222,0.1401225,81187.0,81170.0,0.099399]
[1731296150223,0.09121882,81183.0,81170.0,0.12678421]
[1731296150439,0.09121882,81183.0,81178.0,0.098548]
[1731296150440,0.0806,81183.0,81178.0,0.098548]
[1731296150649,0.0806,81183.0,81171.0,0.12594221]
[1731296150857,0.0806,81183.0,81182.0,0.098544]
[1731296151234,0.0806,81183.0,81172.0,0.18421521]
[1731296151235,0.0488,81185.0,81179.0,0.197095]
[1731296151648,0.0488,81185.0,81183.0,0.098542]
[1731296151822,0.0488,81185.0,81173.0,0.12594221]
[1731296152020,0.00770581,81184.0,81183.0,0.098542]
[1731296153023,0.0762,81190.0,81187.0,0.098536]
[1731296153178,0.0762,81190.0,81188.0,0.098535]
[1731296154377,0.0712,81190.0,81188.0,0.098535]
[1731296154534,0.0498,81194.0,81190.0,0.197067]
[1731296154735,0.0498,81194.0,81193.0,0.09853]
[1731296154963,0.000698,81199.0,81191.0,0.197066]
[1731296155176,0.000698,81199.0,81197.0,0.098525]
[1731296155346,0.000698,81199.0,81198.0,0.098524]
[1731296156519,0.1408205,81199.0,81184.0,0.10952356]
[1731296156660,0.197066,81191.0,81190.0,0.18421521]
[1731296156859,0.098533,81191.0,81190.0,0.18421521]
[1731296157108,0.1895225,81198.0,81185.0,0.12594221]
[1731296157309,0.0807,81189.0,81185.0,0.12594221]
[1731296157481,0.0807,81189.0,81188.0,0.098536]
[1731296158898,0.0807,81189.0,81186.0,0.098538]
[1731296159098,0.0807,81189.0,81186.0,0.12594221]
[1731296159305,0.0807,81189.0,81188.0,0.098536]
[1731296159687,0.08851669,81189.0,81186.0,0.12594221]
[1731296159871,0.00781669,81189.0,81187.0,0.12594221]
[1731296160098,0.000998,81199.0,81187.0,0.12594221]
[1731296160301,0.000998,81199.0,81198.0,0.098524]
[1731296161057,0.000998,81199.0,81198.0,0.22446621]
[1731296167856,0.000998,81199.0,81198.0,0.22792914]
[1731296168005,0.000998,81199.0,81198.0,0.40252914]
[1731296168213,0.000998,81199.0,81198.0,0.40206621]
[1731296168387,0.000998,81199.0,81198.0,0.40706621]
[1731296168595,0.000998,81199.0,81198.0,0.41206621]
[1731296169432,0.000998,81199.0,81198.0,0.41006621]
[1731296169634,0.000998,81199.0,81198.0,0.41206621]
[1731296170315,0.000998,81199.0,81198.0,0.45315107]
[1731296170540,0.000998,81199.0,81198.0,0.41885551]
[1731296170744,0.000998,81199.0,81198.0,0.41206621]
[1731296170943,0.000998,81199.0,81198.0,0.41006621]
[1731296171436,0.000998,81199.0,81198.0,0.41206621]
[1731296173167,0.000998,81199.0,81198.0,0.41006621]
[1731296173383,0.000998,81199.0,81198.0,0.40506621]
[1731296173602,0.000998,81199.0,81198.0,0.33446621]
[1731296174031,0.000998,81199.0,81198.0,0.32946621]
[1731296174256,0.000998,81199.0,81198.0,0.32446621]
[1731296174660,0.000998,81199.0,81198.0,0.32946621]
[1731296175076,0.000998,81199.0,81198.0,0.33690891]
[1731296175499,0.000998,81199.0,81198.0,0.33090891]
[1731296175724,0.000998,81199.0,81198.0,0.32590891]
[1731296178675,0.000998,81199.0,81198.0,0.48099707]
[1731296178827,0.000998,81199.0,81198.0,0.47303141]
[1731296179919,0.000998,81199.0,81198.0,0.46558871]
[1731296180141,0.000998,81199.0,81198.0,0.47058871]
[1731296180844,0.000998,81199.0,81198.0,0.32346621]
[1731296181071,0.000998,81199.0,81198.0,0.32846621]
[1731296181272,0.000998,81199.0,81198.0,0.32346621]
[1731296182682,0.000998,81199.0,81198.0,0.33344904]
[1731296182949,0.000998,81199.0,81198.0,0.33046621]
[1731296185322,0.000998,81199.0,81198.0,0.36873167]
[1731296185565,0.18491321,81216.0,81209.0,0.01]
[1731296185566,0.000698,81216.0,81209.0,0.01]
[1731296185764,0.000698,81216.0,81209.0,0.45378068]
[1731296185986,0.000698,81216.0,81209.0,0.59144117]
[1731296186895,0.000698,81216.0,81209.0,0.45131867]
[1731296187122,0.000698,81216.0,81209.0,0.59144117]
[1731296187974,0.000698,81216.0,81209.0,0.60241602]
[1731296196039,0.000698,81216.0,81209.0,0.52581602]
[1731296196568,0.000698,81216.0,81209.0,0.37869352]
[1731296196774,0.000698,81216.0,81209.0,0.38069352]
[1731296196974,0.000698,81216.0,81209.0,0.38569352]
[1731296198741,0.001098,81210.0,81209.0,0.38569352]
[1731296199483,0.001098,81210.0,81209.0,0.56990873]
[1731296199680,0.001098,81210.0,81209.0,0.38569352]
[1731296201050,1e-06,81210.0,81209.0,0.38569352]
[1731296201474,1e-06,81216.0,81215.0,0.012]
[1731296201631,1e-06,81216.0,81215.0,0.61915212]
[1731296201854,1e-06,81216.0,81215.0,0.65495567]
[1731296204097,0.0668613,81244.0,81231.0,0.002]
[1731296204302,0.0175613,81244.0,81231.0,0.47901052]
[1731296204505,0.0175613,81244.0,81231.0,0.51481417]
[1731296208384,0.0175613,81244.0,81231.0,0.51281417]
[1731296208807,0.0175613,81244.0,81231.0,0.51481417]
[1731296209489,0.0175613,81244.0,81231.0,0.52537385]
[1731296210065,0.0175613,81244.0,81231.0,0.52337385]
[1731296211233,0.0175613,81244.0,81231.0,0.52537385]
[1731296212288,0.0175613,81244.0,81240.0,0.198473]
[1731296212511,0.0175613,81244.0,81240.0,0.50480317]
[1731296212740,0.0175613,81244.0,81240.0,0.50780317]
[1731296213081,0.0175613,81244.0,81240.0,0.50980317]
[1731296213292,1e-06,81241.0,81240.0,0.65492567]
[1731296214242,0.0797,81260.0,81259.0,0.09845]
[1731296214451,0.0797,81260.0,81259.0,0.22439221]
[1731296215272,0.0475,81262.0,81261.0,0.098448]
[1731296215536,0.0475,81262.0,81261.0,0.22439021]
[1731296215973,0.0425,81262.0,81261.0,0.22439021]
[1731296217468,0.0425,81262.0,81261.0,0.23182714]
[1731296217899,0.0425,81262.0,81261.0,0.24258304]
[1731296218104,0.0425,81262.0,81261.0,0.23182714]
[1731296218231,0.12635872,81262.0,81261.0,0.23182714]
[1731296218425,0.12635872,81262.0,81261.0,0.10588493]
[1731296218651,0.12635872,81262.0,81261.0,0.00743693]
[1731296218859,0.1206,81262.0,81261.0,0.00743693]
[1731296219061,0.12661205,81262.0,81258.0,0.098451]
[1731296219254,0.0781,81261.0,81260.0,0.098449]
[1731296219470,0.08411178,81261.0,81260.0,0.00743702]
[1731296220119,0.13121178,81261.0,81260.0,0.00743702]
[1731296220475,0.22965978,81261.0,81260.0,0.00743702]
[1731296220874,0.023,81260.0,81246.0,0.098466]
[1731296221110,0.023,81260.0,81243.0,0.18421521]
[1731296221111,0.230754,81256.0,81255.0,0.18421521]
[1731296221433,0.0828,81255.0,81250.0,0.2808977]
[1731296221792,0.00623897,81254.0,81250.0,0.1824377]
[1731296221998,0.00623897,81254.0,81252.0,0.098458]
[1731296222309,0.00623897,81254.0,81253.0,0.098457]
[1731296222717,0.00623897,81254.0,81250.0,0.2808987]
[1731296222894,0.0793,81255.0,81250.0,0.1824377]
[1731296223123,0.00540537,81253.0,81252.0,0.098459]
[1731296223328,0.0495,81256.0,81250.0,0.1824377]
[1731296223740,0.08469296,81255.0,81251.0,0.098459]
[1731296224555,0.08469296,81255.0,81250.0,0.1824377]
[1731296225424,0.08469296,81255.0,81251.0,0.09846]
[1731296225806,0.08469296,81255.0,81250.0,0.1824377]
[1731296226038,0.09846,81251.0,81250.0,0.1824377]
[1731296226212,0.196913,81254.0,81250.0,0.1824377]
[1731296226213,0.098458,81253.0,81250.0,0.1824377]
[1731296226393,0.00539067,81252.0,81250.0,0.1824377]
[1731296226597,0.0793,81255.0,81250.0,0.1824377]
[1731296226598,0.098457,81254.0,81250.0,0.1824377]
[1731296226796,0.00539094,81253.0,81250.0,0.1824377]
[1731296227217,0.098457,81254.0,81250.0,0.1824377]
[1731296227497,0.00807262,81253.0,81250.0,0.1824377]
[1731296228095,0.177756,81255.0,81250.0,0.1824377]
[1731296228294,0.00807222,81252.0,81250.0,0.1824377]
[1731296228512,0.0793,81255.0,81254.0,0.098456]
[1731296229124,0.001684,81261.0,81260.0,0.098449]
[1731296229317,0.001684,81261.0,81260.0,0.22439121]
[1731296232912,0.001684,81261.0,81260.0,0.32439121]
[1731296233140,0.001684,81261.0,81260.0,0.36268294]
[1731296239210,0.001684,81261.0,81260.0,0.32439121]
[1731296240107,0.001684,81261.0,81260.0,0.36270136]
[1731296240477,0.001684,81261.0,81260.0,0.36270141]
[1731296246121,0.001684,81261.0,81260.0,0.26270141]
[1731296246467,0.001684,81261.0,81260.0,0.22439121]
[1731296248594,0.001684,81261.0,81240.0,0.03672123]
[1731296248812,0.001684,81261.0,81251.0,0.18421521]
[1731296249294,0.100132,81261.0,81255.0,0.098454]
[1731296249700,0.196898,81260.0,81251.0,0.18421521]
[1731296249893,0.098452,81258.0,81252.0,0.098458]
[1731296250098,0.001684,81261.0,81251.0,0.18421521]
[1731296250307,0.001684,81261.0,81250.0,0.2808987]
[1731296250308,0.098455,81256.0,81250.0,0.2808987]
[1731296250568,0.098455,81255.0,81250.0,0.1824377]
[1731296250797,0.001684,81261.0,81250.0,0.1824377]
[1731296250923,0.225655,81255.0,81250.0,0.1824377]
[1731296251556,0.1272,81255.0,81250.0,0.1824377]
[1731296252201,0.225655,81255.0,81250.0,0.1824377]
[1731296257952,0.220655,81255.0,81250.0,0.1824377]
[1731296258538,0.005,81257.0,81250.0,0.1824377]
[1731296258539,0.005,81257.0,81251.0,0.18421521]
[1731296258772,0.080684,81261.0,81255.0,0.12594221]
[1731296259092,0.080684,81261.0,81256.0,0.098454]
[1731296259286,0.001684,81261.0,81259.0,0.098449]
[1731296259514,0.001684,81261.0,81256.0,0.12594221]
[1731296259895,0.001684,81261.0,81257.0,0.32284821]
[1731296260104,0.001684,81261.0,81260.0,0.098449]
[1731296260350,0.001684,81261.0,81260.0,0.22439121]
[1731296264813,0.001684,81261.0,81260.0,0.12594221]
[1731296265023,0.001684,81261.0,81254.0,0.000842]
[1731296265254,0.09845,81259.0,81255.0,0.12594221]
[1731296265462,0.001684,81261.0,81254.0,0.000842]
[1731296265791,0.005,81267.0,81254.0,0.000842]
[1731296265792,0.196891,81263.0,81254.0,0.000842]
[1731296265998,0.023,81265.0,81254.0,0.000842]
[1731296266195,0.098451,81259.0,81254.0,0.000842]
[1731296266435,0.196891,81263.0,81254.0,0.000842]
[1731296266640,0.098446,81262.0,81254.0,0.099298]
[1731296267038,0.196891,81263.0,81254.0,0.099298]
[1731296267249,0.098448,81261.0,81254.0,0.099298]
[1731296268023,0.098448,81261.0,81254.0,0.000842]
[1731296268248,0.023,81265.0,81254.0,0.000842]
[1731296268469,0.1401225,81258.0,81254.0,0.000842]
[1731296268671,0.171355,81255.0,81254.0,0.000842]
[1731296270230,0.3164775,81255.0,81254.0,0.000842]
[1731296270612,0.3928775,81255.0,81254.0,0.000842]
[1731296272511,0.3948775,81255.0,81254.0,0.000842]
[1731296272877,0.63227078,81255.0,81254.0,0.000842]
[1731296273149,0.35216,81251.0,81250.0,0.1824377]
[1731296273355,0.52618786,81251.0,81250.0,0.1824377]
[1731296273560,0.48955328,81251.0,81250.0,0.1824377]
[1731296274915,0.47810221,81251.0,81250.0,0.1824377]
[1731296275218,0.35216,81251.0,81250.0,0.1824377]
[1731296277018,0.48010221,81251.0,81250.0,0.1824377]
[1731296277225,0.47810221,81251.0,81250.0,0.1824377]
[1731296277879,0.489542,81251.0,81250.0,0.1824377]
[1731296279035,0.48954104,81251.0,81250.0,0.1824377]
[1731296279646,0.35216,81251.0,81250.0,0.1824377]
[1731296279897,0.023,81253.0,81250.0,0.1824377]
[1731296280060,0.12146,81251.0,81250.0,0.1824377]
[1731296281360,0.12646,81251.0,81250.0,0.1824377]
[1731296282992,0.2665825,81251.0,81250.0,0.1824377]
[1731296283195,0.3160825,81251.0,81250.0,0.1824377]
[1731296283403,0.3955825,81251.0,81250.0,0.1824377]
[1731296284269,0.3955825,81251.0,81250.0,0.1832797]
[1731296285307,0.17796,81251.0,81250.0,0.1832797]
[1731296285518,0.09846,81251.0,81250.0,0.1832797]
[1731296286738,0.12146,81251.0,81250.0,0.1832797]
[1731296292288,0.277506,81257.0,81250.0,0.1832797]
[1731296292289,0.1183846,81264.0,81250.0,0.1832797]
[1731296292398,0.005,81265.0,81250.0,0.1832797]
[1731296292605,0.196889,81264.0,81250.0,0.1832797]
[1731296292863,0.005,81265.0,81252.0,0.098458]
[1731296293069,0.098446,81263.0,81251.0,0.098459]
[1731296293271,0.098447,81262.0,81251.0,0.28267421]
[1731296293475,0.005,81265.0,81251.0,0.18421521]
[1731296293787,0.121449,81260.0,81251.0,0.18421521]
[1731296294145,0.098455,81256.0,81250.0,0.1832797]
[1731296294348,0.023,81260.0,81250.0,0.1832797]
[1731296294545,0.1401225,81263.0,81250.0,0.1832797]
[1731296294546,0.098449,81261.0,81250.0,0.1832797]
[1731296294765,0.3370155,81263.0,81250.0,0.1832797]
[1731296294766,0.023,81260.0,81251.0,0.18421521]
[1731296294989,0.2517429,81274.0,81251.0,0.18421521]
[1731296294990,0.0365846,81273.0,81252.0,0.12594221]
[1731296295169,0.48791821,81266.0,81253.0,0.0791]
[1731296295543,0.48791821,81266.0,81254.0,0.12594221]
[1731296296122,0.48791821,81266.0,81262.0,0.098445]
[1731296296286,0.48791821,81266.0,81255.0,0.19691]
[1731296296485,0.48791821,81266.0,81256.0,0.12594221]
[1731296296960,0.48791821,81266.0,81260.0,0.098448]
[1731296297936,0.48791821,81266.0,81256.0,0.12594221]
[1731296298335,0.48791821,81266.0,81260.0,0.098449]
[1731296299446,0.48791821,81266.0,81261.0,0.098447]
[1731296300488,0.48791821,81266.0,81263.0,0.098445]
[1731296300700,0.48791821,81266.0,81262.0,0.12594221]
[1731296301282,0.48791821,81266.0,81252.0,0.196916]
[1731296301485,0.023,81265.0,81253.0,0.12594221]
[1731296301654,0.098446,81263.0,81253.0,0.12594221]
[1731296301828,0.121444,81265.0,81253.0,0.22439921]
[1731296302329,0.098448,81262.0,81253.0,0.12594221]
[1731296302530,0.0751,81263.0,81253.0,0.12594221]
[1731296302953,0.098448,81261.0,81253.0,0.12594221]
[1731296303152,0.0751,81263.0,81253.0,0.12594221]
[1731296303380,0.173546,81263.0,81253.0,0.22439921]
[1731296303582,0.0751,81263.0,81253.0,0.12594221]
[1731296303827,0.271992,81263.0,81252.0,0.18421521]
[1731296304044,0.023,81262.0,81250.0,0.1832797]
[1731296304259,0.098457,81254.0,81250.0,0.1832797]
[1731296304466,0.023,81259.0,81250.0,0.1832797]
[1731296304611,0.098453,81257.0,81250.0,0.1832797]
[1731296304827,0.023,81259.0,81250.0,0.1832797]
[1731296305371,0.48791821,81266.0,81257.0,0.279004]
[1731296305496,0.48791821,81266.0,81265.0,0.098443]
[1731296305688,0.48791821,81266.0,81263.0,0.098444]
[1731296306289,0.48791821,81266.0,81261.0,0.098447]
[1731296306534,0.48791821,81266.0,81260.0,0.098449]
[1731296306739,0.48791821,81266.0,81261.0,0.196894]
[1731296306917,0.48791821,81266.0,81262.0,0.098446]
[1731296307313,0.48791821,81266.0,81260.0,0.098448]
[1731296307538,0.001684,81262.0,81261.0,0.098448]
[1731296308295,0.001684,81262.0,81258.0,0.12594221]
[1731296308445,0.001684,81262.0,81261.0,0.098448]
[1731296311782,0.001684,81262.0,81258.0,0.12594221]
[1731296312005,0.001684,81262.0,81261.0,0.098448]
[1731296312525,0.001684,81262.0,81259.0,0.09845]
[1731296312712,0.001684,81262.0,81259.0,0.12594221]
[1731296313358,0.001684,81262.0,81259.0,0.22439221]
[1731296313513,0.001684,81262.0,81260.0,0.098449]
[1731296313714,0.001684,81262.0,81259.0,0.12594221]
[1731296313919,0.001684,81262.0,81260.0,0.098449]
[1731296314134,0.001684,81262.0,81261.0,0.098448]
[1731296315353,0.001684,81262.0,81259.0,0.12594221]
[1731296315563,0.001684,81262.0,81259.0,0.22439221]
[1731296316073,0.001684,81262.0,81261.0,0.098448]
[1731296316274,0.001684,81262.0,81259.0,0.12594221]
[1731296316479,0.001684,81262.0,81260.0,0.098449]
[1731296316704,0.001684,81262.0,81261.0,0.098448]
[1731296317245,0.001684,81262.0,81261.0,0.22439021]
[1731296320779,0.001684,81262.0,81261.0,0.12594221]
[1731296321098,0.001684,81262.0,81256.0,0.098453]
[1731296321298,0.1631225,81261.0,81254.0,0.000842]
[1731296321637,0.204655,81255.0,81254.0,0.000842]
[1731296323412,0.1062,81255.0,81254.0,0.000842]
[1731296324398,0.204655,81255.0,81254.0,0.000842]
[1731296324551,0.1062,81255.0,81254.0,0.000842]
[1731296328580,0.204655,81255.0,81254.0,0.000842]
[1731296333323,0.1062,81255.0,81254.0,0.000842]
[1731296333950,0.204655,81255.0,81254.0,0.000842]
[1731296338222,0.209655,81255.0,81254.0,0.000842]
[1731296338886,0.24633411,81255.0,81254.0,0.000842]
[1731296339220,0.209655,81255.0,81254.0,0.000842]
[1731296340559,0.14292387,81255.0,81254.0,0.000842]
[1731296340722,0.1062,81255.0,81254.0,0.000842]
[1731296341134,0.204655,81255.0,81254.0,0.000842]
[1731296341337,0.206339,81255.0,81254.0,0.000842]
[1731296341540,0.107884,81255.0,81254.0,0.000842]
[1731296341760,0.123139,81255.0,81254.0,0.000842]
[1731296345640,0.024684,81255.0,81254.0,0.000842]
[1731296345843,0.123139,81255.0,81254.0,0.000842]
[1731296348464,0.128139,81255.0,81254.0,0.000842]
[1731296349159,0.024684,81255.0,81254.0,0.000842]
[1731296349383,0.123139,81255.0,81254.0,0.000842]
[1731296350955,0.024684,81255.0,81254.0,0.000842]
[1731296351533,0.123139,81255.0,81254.0,0.000842]
[1731296353863,0.024684,81255.0,81254.0,0.000842]
[1731296355839,0.123139,81255.0,81254.0,0.000842]
[1731296356038,0.024684,81255.0,81254.0,0.000842]
[1731296356244,0.001684,81255.0,81254.0,0.099298]
[1731296356658,0.001684,81255.0,81254.0,0.35844021]
[1731296356859,0.001684,81255.0,81254.0,0.36903519]
[1731296357282,0.001684,81255.0,81254.0,0.40742473]
[1731296359148,0.001684,81255.0,81254.0,0.36903519]
[1731296359370,0.001684,81255.0,81254.0,0.40738629]
[1731296359515,0.001684,81255.0,81254.0,0.36903519]
[1731296364389,0.001684,81255.0,81254.0,0.47403519]
[1731296364721,1e-06,81255.0,81254.0,0.47903519]
[1731296364942,1e-06,81255.0,81254.0,0.51929987]
[1731296365169,1e-06,81255.0,81254.0,0.51429987]
[1731296365344,1e-06,81255.0,81254.0,0.51929987]
[1731296365890,1e-06,81255.0,81254.0,0.48103519]
[1731296366098,1e-06,81255.0,81254.0,0.47903519]
[1731296366894,1e-06,81255.0,81254.0,0.46903519]
[1731296369090,0.06632296,81265.0,81264.0,0.103444]
[1731296369292,0.48791821,81266.0,81264.0,0.13094221]
[1731296369436,0.48791821,81266.0,81265.0,0.22438521]
[1731296369637,0.48791821,81266.0,81265.0,0.22938521]
[1731296378879,0.48791821,81266.0,81265.0,0.13094221]
[1731296379180,0.48791821,81266.0,81265.0,0.005]
[1731296379378,0.48791821,81266.0,81265.0,0.103443]
[1731296381300,0.48791821,81266.0,81265.0,0.005]
[1731296382022,0.48791821,81266.0,81265.0,0.103443]
[1731296383594,0.48791821,81266.0,81265.0,0.005]
[1731296384471,0.48791821,81266.0,81265.0,0.103443]
[1731296385364,0.48791821,81266.0,81265.0,0.005]
[1731296386600,0.48791821,81266.0,81265.0,0.005842]
[1731296388102,0.48791821,81266.0,81265.0,0.000842]
[1731296388308,0.66286021,81266.0,81265.0,0.000842]
[1731296388505,0.70926021,81266.0,81265.0,0.000842]
[1731296388736,0.73226021,81266.0,81265.0,0.000842]
[1731296390776,0.74283683,81266.0,81265.0,0.000842]
[1731296394985,0.74783683,81266.0,81265.0,0.000842]